bitfinex/quotes_ETHUSD_20240819
["timestamp","ask_amount","ask_price","bid_price","bid_amount"]
[1724080292463,1.61889453,2589.9,2589.8,3.8613]
[1724080293702,1.61889453,2589.9,2589.8,7.7226]
[1724080294020,1.21480364,2589.9,2589.8,7.7226]
[1724080294218,1.21480364,2589.9,2589.8,8.881013]
[1724080294367,1.21480364,2589.9,2589.8,3.8613]
[1724080294569,3.87253847,2590.0,2589.7,3.86137]
[1724080294570,4.27717931,2590.0,2589.7,3.86137]
[1724080294792,1.61985243,2589.8,2589.7,3.86137]
[1724080294997,1.61985243,2589.8,2589.7,7.72282]
[1724080295516,1.61985243,2589.9,2589.7,7.72282]
[1724080295720,1.61985243,2589.8,2589.7,7.72282]
[1724080296222,1.61985243,2589.8,2589.7,3.86137]
[1724080296722,1.69504896,2589.8,2589.7,3.86137]
[1724080296885,0.07519653,2589.8,2589.7,3.86137]
[1724080297609,1.69541618,2589.8,2589.7,3.86137]
[1724080297811,0.07519653,2589.8,2589.7,3.86137]
[1724080298015,2.10047413,2589.8,2589.7,3.86137]
[1724080298345,2.10047413,2589.8,2589.5,3.86173]
[1724080298346,2.10047413,2589.8,2589.6,3.86157]
[1724080298507,2.56630837,2589.8,2589.3,3.86195]
[1724080298676,1.21525114,2589.4,2589.3,3.86195]
[1724080299094,1.69560237,2589.4,2589.3,3.86195]
[1724080299513,0.07519653,2589.4,2589.3,3.86195]
[1724080299678,4.08540237,2589.4,2589.3,3.86195]
[1724080299878,1.69572264,2589.4,2589.3,7.72399]
[1724080300103,1.69566968,2589.4,2589.3,7.72399]
[1724080300725,0.07519653,2589.4,2589.3,13.47957404]
[1724080300928,0.07519653,2589.4,2589.3,17.34161404]
[1724080301131,0.07519653,2589.4,2589.3,23.28651404]
[1724080301423,0.81011525,2590.0,2589.9,11.58345]
[1724080301864,0.0726902,2590.0,2589.9,7.7223]
[1724080301993,0.81011525,2590.0,2589.9,7.7223]
[1724080302196,0.88261905,2590.0,2589.9,7.7223]
[1724080302396,0.88261905,2590.0,2589.9,9.120157]
[1724080303122,0.0725038,2590.0,2589.9,9.120157]
[1724080303521,0.88261905,2590.0,2589.9,9.120157]
[1724080305009,1.28777689,2590.0,2589.9,7.7223]
[1724080305178,1.28777689,2590.0,2589.8,3.86129]
[1724080305379,4.03857315,2589.9,2589.6,3.8615]
[1724080305640,4.11134689,2589.9,2589.7,3.86145]
[1724080305821,1.62047315,2589.8,2589.7,3.86145]
[1724080306535,0.07277374,2589.8,2589.6,3.86159]
[1724080306674,1.61989202,2589.7,2589.5,3.86166]
[1724080306879,1.61989202,2589.7,2589.3,3.86204]
[1724080307087,1.21502024,2589.4,2589.3,7.72408]
[1724080307324,0.80997767,2589.4,2589.3,3.86204]
[1724080307821,0.88275141,2589.4,2589.3,7.72408]
[1724080308583,0.07277374,2589.4,2589.3,7.72408]
[1724080308784,1.28779398,2589.4,2589.3,3.86204]
[1724080310245,1.28779398,2589.4,2589.2,3.93130044]
[1724080310483,1.81816258,2589.4,2589.2,0.06912044]
[1724080310777,2.02485723,2589.3,2589.2,0.06912044]
[1724080311186,2.09763097,2589.3,2589.2,0.06912044]
[1724080311339,2.33157374,2589.3,2589.2,0.06912044]
[1724080311682,8.92859672,2589.3,2589.2,0.06912044]
[1724080311986,10.26068425,2589.3,2589.2,0.06912044]
[1724080314494,3.66366127,2589.3,2589.2,0.06912044]
[1724080314753,4.35537904,2589.3,2589.2,0.06912044]
[1724080314986,4.35533557,2589.3,2589.2,0.06912044]
[1724080315350,2.33157374,2589.3,2589.2,0.06912044]
[1724080316797,6.19361374,2589.3,2589.2,0.06912044]
[1724080316962,6.49857072,2589.3,2589.2,0.06912044]
[1724080317165,7.52554909,2589.3,2589.2,0.06912044]
[1724080317979,11.38758909,2589.3,2589.2,0.06912044]
[1724080318951,15.71247772,2589.3,2589.2,0.06912044]
[1724080319151,18.14099192,2589.3,2589.2,0.06912044]
[1724080319396,21.14099192,2589.3,2589.2,0.06912044]
[1724080319700,21.13922152,2589.3,2589.2,0.06912044]
[1724080320472,5.06320617,2589.3,2589.2,0.06912044]
[1724080320685,1.28588523,2589.3,2589.2,3.93131044]
[1724080320878,0.07277374,2589.3,2589.2,11.65569044]
[1724080321078,0.07277374,2589.3,2589.2,13.04688948]
[1724080321479,0.80870561,2589.6,2589.5,7.72348]
[1724080321819,0.80870561,2590.0,2589.6,2.2563]
[1724080321966,0.80870561,2590.1,2590.0,11.583]
[1724080322165,1.61759494,2590.4,2590.0,11.583]
[1724080322166,0.80870561,2590.2,2590.1,3.86085]
[1724080322366,0.80870561,2590.4,2590.3,7.7211]
[1724080322591,0.80870561,2590.5,2590.4,7.7208]
[1724080322792,1.21311149,2590.6,2590.5,7.7205]
[1724080322793,0.80870561,2590.6,2590.5,7.7205]
[1724080323467,0.80870561,2590.7,2590.6,7.7202]
[1724080323897,0.80870561,2590.8,2590.7,7.71992]
[1724080324101,0.80870561,2590.9,2590.8,7.71962]
[1724080324364,0.80870561,2591.0,2590.9,3.85966]
[1724080324597,0.80870561,2591.0,2590.9,7.71932]
[1724080324803,1.21311149,2591.1,2590.9,3.85966]
[1724080324960,1.21311149,2591.1,2590.9,3.85957]
[1724080325165,1.21311149,2591.0,2590.9,3.85957]
[1724080325396,1.49618213,2591.0,2590.6,3.86002]
[1724080325561,0.80725454,2590.8,2590.5,3.86013]
[1724080325996,0.80725454,2590.8,2590.7,3.85993]
[1724080326198,0.80725454,2591.0,2590.9,3.85966]
[1724080326367,0.80725454,2591.1,2591.0,3.85951]
[1724080326785,0.87894175,2591.1,2591.0,3.85951]
[1724080328950,0.87894175,2591.1,2590.9,3.85958]
[1724080329240,1.0162369,2591.0,2590.7,3.85987]
[1724080329531,1.0162369,2591.0,2590.7,3.85985]
[1724080329532,0.8063273,2590.9,2590.7,3.85985]
[1724080329834,1.10991695,2590.9,2590.7,3.85985]
[1724080330335,0.30358965,2590.9,2590.8,3.85981]
[1724080330743,0.07380178,2590.9,2590.8,3.85981]
[1724080330890,0.07380178,2590.9,2590.8,7.71962]
[1724080331229,0.8063273,2591.1,2591.0,3.85951]
[1724080331701,0.8063273,2591.2,2591.1,3.85936]
[1724080332114,1.25057821,2591.2,2591.0,3.8595]
[1724080332485,1.25057821,2591.2,2590.8,3.85966]
[1724080332726,1.25057821,2591.2,2590.9,3.85961]
[1724080333233,1.25057821,2591.2,2591.0,3.8595]
[1724080333599,0.8063273,2591.1,2591.0,3.8595]
[1724080334889,0.8063273,2591.2,2591.1,3.85936]
[1724080335185,0.8063273,2591.2,2591.1,7.71872]
[1724080335782,0.8063273,2591.2,2591.1,15.117601]
[1724080340335,0.8063273,2591.2,2591.1,11.57808]
[1724080342102,0.8063273,2591.2,2591.1,7.71872]
[1724080342419,0.8063273,2591.2,2591.1,3.85936]
[1724080342735,0.88062997,2591.2,2591.1,7.71872]
[1724080343098,0.88062997,2591.2,2590.8,5.3459]
[1724080343099,0.88062997,2591.2,2591.0,3.8594]
[1724080343742,0.88062997,2591.2,2591.1,3.85936]
[1724080344042,0.88062997,2591.2,2591.1,7.71872]
[1724080344739,2.3187,2591.5,2591.3,7.71799]
[1724080345040,0.07461091,2591.4,2591.3,3.85898]
[1724080347139,0.07461091,2591.4,2590.9,3.85965]
[1724080347302,0.07461091,2591.4,2590.7,3.85994]
[1724080347303,6.14418,2591.2,2590.7,3.85994]
[1724080347503,6.14418,2591.2,2590.7,7.71983]
[1724080347697,6.14418,2591.2,2590.8,3.8598]
[1724080347893,0.07461091,2591.1,2590.6,3.8601]
[1724080348203,0.07461091,2591.1,2590.1,6.14756]
[1724080348204,2.2849,2590.6,2590.1,3.86075]
[1724080348399,3.86042,2590.4,2590.0,3.861]
[1724080348614,0.07461091,2590.3,2589.7,3.86144]
[1724080348810,2.3475,2590.1,2589.6,3.86152]
[1724080349135,2.3475,2590.1,2589.5,3.86172]
[1724080349136,3.86103,2590.0,2589.5,3.86166]
[1724080349348,4.87542309,2590.0,2588.9,2.2936]
[1724080349636,0.07461091,2589.9,2589.6,3.86152]
[1724080349806,2.3475,2590.1,2589.6,3.86152]
[1724080350007,0.07461091,2589.8,2589.4,3.86187]
[1724080350343,3.86042,2590.4,2589.8,3.86119]
[1724080350694,0.07461091,2590.3,2589.8,3.86119]
[1724080352337,0.07461091,2590.3,2589.9,3.86114]
[1724080352496,0.07461091,2590.3,2590.0,3.86099]
[1724080353095,2.3395,2590.6,2590.0,3.86099]
[1724080353308,0.07286372,2590.2,2590.0,3.86099]
[1724080353647,2.3395,2590.6,2590.1,3.86075]
[1724080353848,2.3395,2590.6,2590.1,7.72152]
[1724080354062,2.3395,2590.6,2590.1,3.86075]
[1724080354063,2.27037956,2590.6,2590.1,3.86075]
[1724080354941,3.86067,2590.3,2589.8,3.86122]
[1724080355280,3.86067,2590.3,2589.5,0.614887]
[1724080355281,3.86105,2590.0,2589.5,3.86171]
[1724080355422,3.86093,2590.1,2589.5,3.86171]
[1724080355852,3.86093,2590.1,2589.6,3.86159]
[1724080356028,3.86093,2590.1,2589.6,7.72318]
[1724080356314,3.86071,2590.2,2589.7,3.86143]
[1724080356640,11.3406,2590.3,2589.8,3.86125]
[1724080356839,11.3406,2590.3,2589.6,3.86152]
[1724080356840,3.86087,2590.1,2589.6,3.86152]
[1724080357144,11.3406,2590.3,2589.2,3.86217]
[1724080357145,9.9744,2590.3,2589.9,3.86112]
[1724080357347,13.83502,2590.3,2589.7,3.86132]
[1724080357558,9.9744,2590.3,2589.9,3.86115]
[1724080357768,9.9744,2590.3,2589.9,3.86107]
[1724080357963,9.9744,2590.3,2590.0,3.86099]
[1724080359115,7.48,2590.3,2590.2,3.8607]
[1724080359316,14.647,2590.6,2590.2,3.8607]
[1724080359317,2.307,2590.6,2590.2,3.8607]
[1724080359629,6.16712,2590.6,2590.0,3.86098]
[1724080359959,6.16712,2590.6,2589.9,4.247157]
[1724080359960,3.86038,2590.5,2590.1,3.86083]
[1724080360254,3.86057,2590.3,2589.7,3.86142]
[1724080360560,2.3851,2590.2,2589.8,3.86129]
[1724080360762,2.3851,2590.2,2589.8,3.86123]
[1724080360962,2.3851,2590.2,2589.8,7.72244]
[1724080361120,2.3851,2590.2,2589.8,3.86122]
[1724080361465,2.3851,2590.2,2589.9,3.86114]
[1724080361666,4.66450712,2590.5,2589.9,3.86105]
[1724080361667,0.07294084,2590.1,2589.9,3.86105]
[1724080361964,6.24551,2590.4,2589.9,7.72212]
[1724080362258,0.07299227,2590.0,2589.9,3.86104]
[1724080362427,0.07299227,2590.0,2589.9,7.72219]
[1724080362758,3.18922712,2590.7,2590.3,3.8605]
[1724080362916,3.18922712,2590.7,2590.1,3.86084]
[1724080362917,4.66425712,2590.6,2590.1,3.86084]
[1724080363361,0.80412712,2590.5,2590.2,3.8607]
[1724080363516,0.80412712,2590.6,2590.5,3.86025]
[1724080363715,3.18922712,2590.7,2590.5,3.86025]
[1724080363972,3.18922712,2590.7,2590.3,3.86048]
[1724080364260,0.80412712,2590.6,2590.3,3.86048]
[1724080364414,0.80412712,2590.5,2590.3,3.86048]
[1724080365116,0.80412712,2590.4,2590.3,3.86048]
[1724080365467,0.80784833,2590.4,2590.3,3.86048]
[1724080366151,0.80784833,2590.5,2590.4,3.8604]
[1724080366465,1.20619069,2590.6,2590.4,3.86032]
[1724080366670,0.80790776,2590.5,2590.4,3.86032]
[1724080367257,0.80789779,2590.5,2590.4,3.86032]
[1724080367559,1.20619069,2590.5,2590.4,7.72072]
[1724080367759,1.20619069,2590.6,2590.5,3.86025]
[1724080368065,1.20619069,2590.6,2590.5,7.7205]
[1724080368450,0.80817173,2590.6,2590.5,7.7205]
[1724080368611,8.68619069,2590.8,2590.5,7.7205]
[1724080368612,0.80817173,2590.7,2590.6,7.7202]
[1724080369442,7.48,2590.8,2590.7,3.85996]
[1724080369671,8.28809135,2590.8,2590.7,3.85996]
[1724080370036,0.80809135,2590.8,2590.7,3.85996]
[1724080370241,0.80809135,2590.8,2590.6,3.8601]
[1724080370442,1.20619069,2590.8,2590.6,3.8601]
[1724080370892,0.80819358,2590.7,2590.6,3.8601]
[1724080371241,1.20619069,2590.8,2590.6,3.8601]
[1724080371441,0.80819198,2590.7,2590.6,3.8601]
[1724080371640,0.87915936,2590.7,2590.6,3.8601]
[1724080372347,0.07096738,2590.7,2590.6,3.8601]
[1724080372693,1.20619069,2590.8,2590.6,3.8601]
[1724080372862,0.87925701,2590.7,2590.6,3.8601]
[1724080373245,0.87925701,2590.7,2590.6,7.7202]
[1724080375598,3.65085807,2590.7,2590.2,3.8606]
[1724080375797,3.65085807,2590.7,2590.0,10.5529443]
[1724080375798,0.80842871,2590.5,2590.4,3.86036]
[1724080376107,1.28398952,2590.5,2590.1,3.86072]
[1724080376257,0.80847758,2590.3,2590.1,3.86079]
[1724080376451,0.80847758,2590.3,2590.0,3.86098]
[1724080376700,0.07134645,2590.2,2590.1,3.86085]
[1724080376901,0.80847758,2590.2,2590.1,3.86085]
[1724080377100,0.87982403,2590.2,2590.1,3.86085]
[1724080377310,0.07134645,2590.2,2590.1,3.86085]
[1724080377519,0.80847758,2590.3,2590.2,3.8607]
[1724080377739,0.80847758,2590.3,2590.2,7.7214]
[1724080378315,1.21271638,2590.5,2590.4,3.8604]
[1724080378978,1.21271638,2590.5,2590.4,7.7208]
[1724080379290,1.21292282,2590.5,2590.4,3.8604]
[1724080379493,4.09315425,2590.5,2590.3,3.86054]
[1724080379799,4.09315425,2590.5,2589.8,3.86126]
[1724080379800,1.21316514,2590.4,2590.2,3.86069]
[1724080380187,0.80875581,2590.3,2590.2,3.86069]
[1724080380382,1.21316514,2590.4,2590.3,7.7211]
[1724080380591,1.21316514,2590.4,2590.3,3.86055]
[1724080380821,1.60825425,2590.5,2589.7,5.2966]
[1724080381001,0.80880258,2590.2,2590.1,7.7217]
[1724080381199,0.80880258,2590.3,2590.2,7.7214]
[1724080381383,1.21320387,2590.4,2590.3,3.86055]
[1724080381823,0.80876726,2590.4,2590.3,7.7211]
[1724080381988,0.80876726,2590.4,2590.3,8.879271]
[1724080382623,0.80876726,2590.4,2590.3,12.739821]
[1724080383176,0.80876726,2590.5,2590.4,11.5812]
[1724080383379,0.80876726,2590.7,2590.6,7.7202]
[1724080383803,0.80876726,2590.8,2590.7,7.71992]
[1724080384199,0.80876726,2590.9,2590.8,7.71962]
[1724080384410,1.21320387,2590.9,2590.8,7.71962]
[1724080384620,1.60825425,2591.0,2590.9,3.85966]
[1724080384848,1.60825425,2591.1,2590.6,3.85999]
[1724080385058,1.21325052,2591.0,2590.9,11.57898]
[1724080385354,1.60825425,2591.1,2591.0,10.05492]
[1724080385355,0.80870559,2591.1,2591.0,10.05492]
[1724080385556,1.60825425,2591.4,2591.3,7.71812]
[1724080385557,2.41695984,2591.4,2591.3,7.71812]
[1724080385712,0.80870559,2591.5,2591.4,7.71782]
[1724080385909,1.21325052,2591.7,2591.6,11.57586]
[1724080385910,0.80870559,2591.7,2591.6,11.57586]
[1724080386175,1.21325052,2591.8,2591.7,7.71694]
[1724080386176,0.80870559,2591.8,2591.7,7.71694]
[1724080386469,0.80870559,2591.8,2591.5,0.771782]
[1724080386470,1.21325052,2592.0,2591.9,7.71634]
[1724080386673,0.80737889,2592.0,2591.9,7.71634]
[1724080386872,0.80737889,2592.1,2592.0,7.71604]
[1724080387174,0.80737889,2592.2,2592.0,3.85802]
[1724080387457,2.02176397,2592.5,2592.0,3.85802]
[1724080387458,0.80737889,2592.5,2592.0,3.85802]
[1724080387638,0.80737889,2592.5,2592.4,3.85742]
[1724080388452,0.80737889,2592.7,2592.5,3.85716]
[1724080389019,0.80737889,2592.7,2592.4,3.85742]
[1724080389431,1.78856826,2592.7,2592.4,3.85742]
[1724080389850,0.98118937,2592.7,2592.4,3.85742]
[1724080390254,0.80737889,2592.6,2592.1,3.85785]
[1724080390435,0.4610073,2592.6,2592.2,3.8577]
[1724080391049,1.26838619,2592.6,2592.2,3.8577]
[1724080391250,0.4610073,2592.6,2592.2,3.8577]
[1724080391451,0.4610073,2592.6,2592.0,7.71582]
[1724080391633,0.4610073,2592.6,2592.1,3.85784]
[1724080391834,0.4610073,2592.6,2592.2,3.85769]
[1724080392079,5.64563826,2592.7,2592.2,3.85769]
[1724080392370,5.64563826,2592.7,2592.2,3.85765]
[1724080392667,2.4507,2592.6,2591.8,10.28]
[1724080392870,3.8575,2592.4,2591.7,3.85847]
[1724080393027,3.8575,2592.4,2591.8,3.85827]
[1724080393028,2.3733,2592.2,2591.8,3.85827]
[1724080393226,2.3733,2592.2,2591.9,3.85815]
[1724080393457,3.85816,2592.0,2591.3,3.85896]
[1724080393659,3.85825,2591.9,2591.4,3.85883]
[1724080394223,3.85825,2591.9,2591.3,3.85896]
[1724080394224,2.3823,2591.8,2591.3,3.85896]
[1724080394423,6.24062,2591.8,2591.3,3.85896]
[1724080394624,6.24062,2591.8,2590.5,16.44416255]
[1724080394625,3.85849,2591.7,2590.6,2.2644]
[1724080394868,3.47292489,2591.8,2590.6,2.2644]
[1724080394869,3.85901,2591.4,2590.8,3.85973]
[1724080395074,6.34469,2591.3,2590.6,3.86003]
[1724080395228,6.325777,2591.3,2590.8,3.85978]
[1724080395880,6.325777,2591.3,2590.3,6.28842]
[1724080395881,3.85923,2591.2,2590.5,3.86021]
[1724080396076,3.85923,2591.2,2590.6,3.8601]
[1724080396230,3.85923,2591.2,2590.6,3.86001]
[1724080396432,3.85923,2591.2,2590.7,3.85995]
[1724080396648,7.71857,2591.2,2590.7,3.85995]
[1724080396860,2.466687,2591.3,2590.9,3.85953]
[1724080397063,2.466687,2591.3,2590.8,3.85979]
[1724080397228,2.466687,2591.3,2591.0,3.85949]
[1724080397644,0.80737889,2591.5,2591.1,3.85935]
[1724080397980,4.66600889,2591.6,2591.0,3.85937]
[1724080398274,6.12028,2591.5,2591.1,3.85931]
[1724080398634,2.2615,2591.5,2591.1,3.85931]
[1724080398972,3.23463209,2591.5,2590.9,3.85955]
[1724080399177,3.23463209,2591.5,2590.7,3.85985]
[1724080399178,3.06887889,2591.5,2590.7,3.85985]
[1724080399341,3.85909,2591.3,2590.8,3.85973]
[1724080399785,3.85758322,2591.3,2590.8,3.85973]
[1724080401730,0.07181526,2591.2,2590.8,3.85973]
[1724080401966,0.80737889,2591.4,2590.9,3.85958]
[1724080402177,0.07181526,2591.1,2590.9,3.85958]
[1724080402336,4.66630889,2591.4,2591.0,3.85951]
[1724080403675,0.80737889,2591.4,2591.0,3.85951]
[1724080403973,6.92766889,2591.5,2591.0,3.85951]
[1724080404274,9.03644526,2591.5,2591.0,3.85951]
[1724080404485,0.80737889,2591.4,2591.0,3.85951]
[1724080404675,0.80737889,2591.4,2591.1,3.85926]
[1724080405038,0.80737889,2591.4,2591.2,3.85912]
[1724080405256,0.80737889,2591.4,2591.1,3.85934]
[1724080405578,2.2615,2591.5,2591.1,3.85934]
[1724080406081,6.12036,2591.5,2591.0,3.85948]
[1724080406480,0.8053846,2591.4,2591.0,3.85948]
[1724080407147,0.8053846,2591.4,2591.2,3.85914]
[1724080408687,0.8053846,2591.4,2591.3,3.85906]
[1724080408855,0.8053846,2591.4,2591.2,3.85921]
[1724080409675,0.8053846,2591.4,2591.1,3.85935]
[1724080410378,0.8053846,2591.4,2591.2,3.85913]
[1724080410587,0.8053846,2591.4,2591.2,0.771848]
[1724080410892,0.8053846,2591.4,2591.3,3.85906]
[1724080411181,0.8053846,2591.4,2591.3,7.71812]
[1724080412674,0.8053846,2591.5,2591.4,3.85891]
[1724080413072,0.8053846,2591.6,2591.3,3.85906]
[1724080413274,0.8053846,2591.6,2591.3,3.85899]
[1724080413439,0.8053846,2591.6,2591.4,3.8589]
[1724080413846,0.8053846,2591.6,2591.4,3.85891]
[1724080414189,0.8053846,2591.6,2591.3,3.85897]
[1724080414872,0.8053846,2591.6,2591.3,7.71797]
[1724080415077,0.8053846,2591.6,2591.3,3.85897]
[1724080415277,0.8053846,2591.6,2591.3,7.71796]
[1724080415480,0.8053846,2591.6,2591.4,3.8589]
[1724080416216,0.8053846,2591.5,2591.3,7.71799]
[1724080416404,3.6873769,2591.7,2591.3,3.85893]
[1724080416405,0.8053846,2591.6,2591.3,3.85893]
[1724080416558,0.8053846,2591.6,2591.1,3.85923]
[1724080416763,4.7362845,2591.5,2591.1,3.85923]
[1724080418710,0.8775145,2591.5,2591.1,3.85923]
[1724080419077,0.8775145,2591.5,2591.1,4.245153]
[1724080419863,0.8775145,2591.5,2591.2,3.85918]
[1724080421061,0.8775145,2591.5,2591.2,7.71831]
[1724080421263,0.8775145,2591.5,2591.2,3.85913]
[1724080421264,0.0721299,2591.5,2591.2,3.85913]
[1724080421512,0.8775145,2591.5,2591.4,3.85891]
[1724080421708,0.8775145,2591.5,2591.4,4.244801]
[1724080421709,0.0721299,2591.5,2591.4,4.244801]
[1724080422015,0.0721299,2591.5,2591.4,3.85891]
[1724080422362,0.8775145,2591.5,2591.2,3.85915]
[1724080422820,0.8775145,2591.5,2591.2,3.85914]
[1724080423018,0.8775145,2591.5,2591.0,3.85939]
[1724080423174,4.6643246,2591.4,2591.0,3.85939]
[1724080423376,0.8053846,2591.3,2591.0,3.85939]
[1724080423714,0.87757227,2591.3,2591.0,3.85939]
[1724080424112,0.07218767,2591.3,2591.1,3.85936]
[1724080424319,0.07218767,2591.3,2591.2,3.85921]
[1724080424522,0.07218767,2591.3,2591.1,3.85933]
[1724080425522,0.87757227,2591.3,2591.1,3.85933]
[1724080425722,0.07218767,2591.3,2591.1,3.85933]
[1724080426325,5.00142147,2591.5,2591.1,3.85933]
[1724080426635,0.06927277,2591.2,2591.1,3.85933]
[1724080426844,0.80693512,2591.4,2591.2,3.85917]
[1724080428011,0.80693512,2591.3,2591.2,3.85917]
[1724080428195,0.80693512,2591.4,2591.2,3.85917]
[1724080428792,0.80693512,2591.4,2591.3,7.71812]
[1724080429353,0.80693512,2591.5,2591.4,3.85891]
[1724080430134,4.0900692,2591.7,2591.4,3.85891]
[1724080430338,0.80733313,2591.5,2591.4,3.85891]
[1724080430511,0.80738222,2591.5,2591.4,3.85891]
[1724080431096,0.80738222,2591.5,2591.3,3.85906]
[1724080431307,0.8074162,2591.4,2591.1,7.7185]
[1724080431639,5.4694892,2591.6,2591.1,3.85922]
[1724080431640,0.80751152,2591.2,2591.1,3.85922]
[1724080432149,0.8075035,2591.2,2591.1,3.85922]
[1724080432851,1.6107692,2591.4,2590.9,7.28]
[1724080432999,2.3749,2590.9,2590.4,3.86031]
[1724080433200,0.80767608,2590.7,2590.4,3.86031]
[1724080433523,0.80767608,2590.6,2590.5,7.72049]
[1724080433707,0.80767608,2590.7,2590.6,3.8601]
[1724080433915,1.6107692,2591.0,2590.7,3.85989]
[1724080434129,1.6107692,2590.9,2590.7,3.85989]
[1724080434418,1.6107692,2590.9,2590.7,3.85996]
[1724080434725,1.6107692,2591.0,2590.8,3.85981]
[1724080434941,1.6107692,2591.0,2590.8,3.85974]
[1724080435146,1.6107692,2591.1,2591.0,3.85951]
[1724080435300,1.6107692,2591.2,2591.1,3.85936]
[1724080435642,1.21220238,2591.3,2591.2,3.85921]
[1724080436150,2.01940273,2591.6,2591.3,3.85906]
[1724080436151,1.6107692,2591.4,2591.3,3.85906]
[1724080436900,1.6107692,2591.4,2590.9,3.85958]
[1724080436901,2.01940273,2591.4,2590.9,3.85958]
[1724080437247,0.80861171,2591.0,2590.9,3.85958]
[1724080437445,1.61722342,2591.2,2591.0,3.85951]
[1724080438140,1.61722342,2591.1,2590.9,3.85964]
[1724080438321,1.21359246,2591.0,2590.8,3.85974]
[1724080438649,2.0226541,2590.9,2590.7,3.85996]
[1724080438848,1.61926683,2590.8,2590.7,3.85996]
[1724080439017,1.21439611,2590.8,2590.7,3.85996]
[1724080439420,1.61926683,2590.9,2590.8,3.85981]
[1724080439613,2.0226541,2590.9,2590.8,3.85981]
[1724080440216,2.0226541,2590.9,2590.7,3.85995]
[1724080440428,2.0226541,2590.9,2590.6,3.86003]
[1724080440649,2.0226541,2590.7,2590.5,3.86022]
[1724080440810,1.62011032,2590.6,2590.3,3.86046]
[1724080440998,1.62013203,2590.5,2590.4,3.86026]
[1724080441425,1.62013203,2590.5,2590.2,3.86068]
[1724080441426,2.02531798,2590.5,2590.2,3.86068]
[1724080441627,1.62027163,2590.3,2590.0,11.14088]
[1724080441927,1.62027163,2590.2,2590.1,3.86082]
[1724080442577,1.62027163,2590.2,2590.1,11.50964]
[1724080442787,1.21470347,2590.3,2590.2,7.7214]
[1724080442924,1.21470347,2590.3,2590.2,11.5821]
[1724080442925,0.80976374,2590.3,2590.2,11.5821]
[1724080443125,0.80976374,2590.4,2590.3,7.7211]
[1724080443539,0.80976374,2590.4,2590.3,11.58165]
[1724080443721,0.80976374,2590.5,2590.4,7.7208]
[1724080444269,0.80976374,2590.6,2590.5,3.86025]
[1724080444473,0.80976374,2590.7,2590.6,7.7202]
[1724080445629,1.21470347,2590.8,2590.7,3.85996]
[1724080446652,1.62027163,2590.9,2590.7,3.85996]
[1724080446853,0.06878462,2590.8,2590.7,3.85996]
[1724080447053,1.28306938,2590.8,2590.7,3.85996]
[1724080447455,1.28306938,2590.8,2590.7,8.491926]
[1724080448367,1.68905625,2590.8,2590.7,3.85996]
[1724080448576,1.28300148,2590.8,2590.7,3.85996]
[1724080449580,1.28297778,2590.8,2590.7,3.85996]
[1724080449878,1.28297778,2590.8,2590.7,7.71992]
[1724080450185,0.8781873,2590.8,2590.7,8.491912]
[1724080450354,0.8781873,2590.8,2590.7,13.930812]
[1724080450548,0.06878462,2590.8,2590.7,13.930812]
[1724080450749,0.8781873,2590.8,2590.7,11.491912]
[1724080451080,1.68905625,2590.8,2590.5,3.86018]
[1724080451296,1.21420928,2590.7,2590.6,3.85999]
[1724080451429,1.28307098,2590.7,2590.6,3.85999]
[1724080452079,1.68783183,2590.7,2590.6,3.85999]
[1724080452228,1.68783183,2590.7,2590.4,3.86026]
[1724080452434,1.21427737,2590.5,2590.4,3.86026]
[1724080452628,1.21427737,2590.6,2590.5,3.86025]
[1724080452872,1.28313907,2590.6,2590.5,3.86025]
[1724080453580,0.0688617,2590.6,2590.5,3.86025]
[1724080453764,1.68783183,2590.6,2590.5,3.86025]
[1724080453928,1.68783183,2590.6,2590.4,3.8604]
[1724080454289,1.21413861,2590.5,2590.4,7.7208]
[1724080454851,1.28300031,2590.5,2590.4,7.7208]
[1724080455528,0.0688617,2590.5,2590.4,7.7208]
[1724080455883,1.28300031,2590.5,2590.4,7.7208]
[1724080456932,1.28300031,2590.5,2590.4,3.8604]
[1724080457130,0.0688617,2590.5,2590.3,3.86053]
[1724080457334,1.61897013,2590.4,2590.3,3.86053]
[1724080457534,1.28232485,2590.4,2590.3,3.86053]
[1724080457948,0.87765541,2590.4,2590.3,7.72108]
[1724080458154,1.28232485,2590.4,2590.3,3.86053]
[1724080459033,1.28224141,2590.4,2590.3,3.86053]
[1724080459259,0.87762495,2590.4,2590.3,3.86053]
[1724080459433,0.87758579,2590.4,2590.3,3.86053]
[1724080459685,0.06847624,2590.4,2590.3,3.86053]
[1724080459948,1.28224141,2590.4,2590.3,3.86053]
[1724080460786,0.06847624,2590.4,2590.3,3.86053]
[1724080461054,0.87747079,2590.4,2590.3,7.72108]
[1724080461254,0.87747079,2590.4,2590.3,8.107133]
[1724080465076,0.87747079,2590.4,2590.3,3.86053]
[1724080465502,0.87747079,2590.4,2590.3,7.72108]
[1724080465887,0.06847624,2590.4,2590.3,3.86053]
[1724080466112,1.28224141,2590.4,2590.3,3.86053]
[1724080467342,3.53474141,2590.4,2590.2,3.86063]
[1724080467501,1.21358376,2590.3,2590.2,3.86063]
[1724080467838,1.28194434,2590.3,2590.2,3.86063]
[1724080468336,1.68733071,2590.3,2590.1,3.86084]
[1724080468529,1.68733071,2590.3,2589.9,3.86104]
[1724080468530,1.21359765,2590.2,2589.9,3.86104]
[1724080468736,0.80898119,2590.0,2589.9,3.86104]
[1724080469105,0.8772566,2590.0,2589.9,3.86104]
[1724080469306,1.28181688,2590.0,2589.8,3.86127]
[1724080469514,0.80903343,2589.9,2589.8,3.86127]
[1724080469820,0.80903343,2590.0,2589.9,3.86115]
[1724080470592,0.80903343,2590.1,2590.0,3.861]
[1724080471216,1.21359765,2590.2,2590.1,3.86085]
[1724080471217,0.80903343,2590.2,2590.1,3.86085]
[1724080471463,1.21359765,2590.3,2590.1,3.86085]
[1724080471821,1.21359765,2590.2,2590.1,3.86085]
[1724080472148,1.61897013,2590.3,2590.0,3.861]
[1724080472455,1.21310268,2590.1,2590.0,3.861]
[1724080472607,1.21310268,2590.2,2590.0,3.861]
[1724080472801,1.21310268,2590.1,2590.0,3.861]